fUSD/lending_fUSD_20250502
["ID","MTS","AMOUNT","RATE_DAILY","PERIOD"]
[359589255,1746167446431,-2127.01,0.00019999,2]
[359589256,1746167446441,-481.31192135,0.00019999,2]
[359589257,1746167446450,-1104.02,0.00019999,2]
[359589258,1746167446460,-1766.94,0.00019999,2]
[359589259,1746167446469,-483.53289868,0.00019999,2]
[359589260,1746167446480,-541.5,0.00019999,2]
[359589261,1746167446489,-675.63,0.00019999,2]
[359589262,1746167446504,-605.17,0.00019999,2]
[359589263,1746167446513,-485.97,0.00019999,2]
[359589264,1746167446523,-7337.39,0.00019999,2]
[359589265,1746167446532,-1121.77,0.00019999,2]
[359589266,1746167446542,-450.0,0.00019999,2]
[359589267,1746167446551,-450.0,0.00019999,2]
[359589268,1746167446562,-1109.34,0.00019999,2]
[359589269,1746167446572,-542.58258373,0.00019999,2]
[359589270,1746167446582,-450.0,0.00019999,2]
[359589271,1746167446591,-546.31801328,0.00019999,2]
[359589272,1746167446600,-1444.43,0.00019999,2]
[359589273,1746167446610,-450.0,0.00019999,2]
[359589274,1746167446619,-450.0,0.00019999,2]
[359589275,1746167446628,-450.0,0.00019999,2]
[359589276,1746167446639,-717.61,0.00019999,2]
[359589277,1746167446648,-484.23,0.00019999,2]
[359589278,1746167446657,-450.0,0.00019999,2]
[359589279,1746167446667,-450.0,0.00019999,2]
[359589280,1746167446676,-2031.50153385,0.00019999,2]
[359589281,1746167446686,-512.49471322,0.00019999,2]
[359589282,1746167446696,-491.59,0.00019999,2]
[359589283,1746167446706,-1195.62,0.00019999,2]
[359589284,1746167446715,-4647.34,0.00019999,2]
[359589285,1746167446725,-674.95,0.00019999,2]
[359589287,1746167446735,-1230.51,0.00019999,2]
[359589288,1746167446744,-1723.74,0.00019999,2]
[359589289,1746167446754,-533.56,0.00019999,2]
[359589290,1746167446764,-984.95,0.00019999,2]
[359589291,1746167446774,-450.0,0.00019999,2]
[359589292,1746167446783,-1050.71,0.00019999,2]
[359589293,1746167446793,-450.0,0.00019999,2]
[359589294,1746167446802,-668.41,0.00019999,2]
[359589295,1746167446812,-450.0,0.00019999,2]
[359589296,1746167446822,-474.27963675,0.00019999,2]
[359589297,1746167446831,-450.0,0.00019999,2]
[359589298,1746167446841,-581.73,0.00019999,2]
[359589299,1746167446851,-450.0,0.00019999,2]
[359589300,1746167446860,-1401.48,0.00019999,2]
[359589301,1746167446870,-645.88,0.00019999,2]
[359589302,1746167446879,-1086.08,0.00019999,2]
[359589303,1746167446889,-472.09187966,0.00019999,2]
[359589304,1746167446898,-450.0,0.00019999,2]
[359589305,1746167446907,-450.0,0.00019999,2]
[359589306,1746167446918,-850.43,0.00019999,2]
[359589307,1746167446930,-164.22494384,0.00019999,2]
[359589308,1746167446939,-482.99792283,0.00019999,2]
[359589309,1746167446948,-617.62,0.00019999,2]
[359589310,1746167446958,-2742.29,0.00019999,2]
[359589311,1746167446967,-450.0,0.00019999,2]
[359589312,1746167446976,-450.0,0.00019999,2]
[359589313,1746167446986,-1100.1,0.00019999,2]
[359589314,1746167446995,-502.67311899,0.00019999,2]
[359589315,1746167447004,-450.0,0.00019999,2]
[359589316,1746167447015,-474.36454793,0.00019999,2]
[359589317,1746167447024,-470.6803191,0.00019999,2]
[359589318,1746167447033,-450.0,0.00019999,2]
[359589319,1746167447043,-472.99754286,0.00019999,2]
[359589320,1746167447052,-477.30005923,0.00019999,2]
[359589321,1746167447062,-598.49286131,0.00019999,2]
[359589322,1746167447072,-2052.91,0.00019999,2]
[359589323,1746167447083,-1789.35,0.00019999,2]
[359589324,1746167447093,-581.17319964,0.00019999,2]
[359589325,1746167447103,-889.37,0.00019999,2]
[359589326,1746167447112,-450.0,0.00019999,2]
[359589327,1746167447122,-957.41,0.00019999,2]
[359589328,1746167447132,-450.0,0.00019999,2]
[359589329,1746167447141,-579.79514215,0.00019999,2]
[359589330,1746167447151,-1259.12,0.00019999,2]
[359589331,1746167447160,-481.68611999,0.00019999,2]
[359589332,1746167447170,-1926.72,0.00019999,2]
[359589333,1746167447181,-528.97,0.00019999,2]
[359589334,1746167447190,-495.27,0.00019999,2]
[359589335,1746167447199,-3598.83,0.00019999,2]
[359589336,1746167447208,-479.51634144,0.00019999,2]
[359589337,1746167447218,-450.0,0.00019999,2]
[359589338,1746167447227,-474.22018623,0.00019999,2]
[359589339,1746167447237,-450.0,0.00019999,2]
[359589340,1746167447246,-450.0,0.00019999,2]
[359589341,1746167447256,-450.0,0.00019999,2]
[359589342,1746167447265,-450.0,0.00019999,2]
[359589343,1746167447276,-369.5265182,0.00019999,2]
[359589344,1746167447286,-450.0,0.00019999,2]
[359589345,1746167447295,-368.23329625,0.00019999,2]
[359589346,1746167447305,-450.0,0.00019999,2]
[359589347,1746167447315,-450.0,0.00019999,2]
[359589348,1746167447324,-472.61464909,0.00019999,2]
[359589349,1746167447334,-450.0,0.00019999,2]
[359589350,1746167447343,-9054.03,0.00019999,2]
[359589351,1746167447352,-478.30414347,0.00019999,2]
[359589352,1746167447362,-450.0,0.00019999,2]
[359589353,1746167447372,-450.0,0.00019999,2]
[359589354,1746167447382,-505.94631352,0.00019999,2]
[359589355,1746167447392,-473.8258779,0.00019999,2]
[359589356,1746167447402,-278.42121964,0.00019999,2]
[359589357,1746167447411,-450.0,0.00019999,2]
[359589358,1746167447422,-500.0,0.00019999,2]
[359589359,1746167447431,-500.0,0.00019999,2]
[359589360,1746167447440,-500.0,0.00019999,2]
[359589361,1746167447450,-500.0,0.00019999,2]
[359589362,1746167447459,-450.0,0.00019999,2]
[359589363,1746167447469,-500.0,0.00019999,2]
[359589364,1746167447479,-500.0,0.00019999,2]
[359589365,1746167447489,-500.0,0.00019999,2]
[359589366,1746167447499,-479.31271413,0.00019999,2]
[359589367,1746167447509,-500.0,0.00019999,2]
[359589368,1746167447519,-500.0,0.00019999,2]
[359589369,1746167447529,-500.0,0.00019999,2]
[359589370,1746167447539,-556.17257505,0.00019999,2]
[359589371,1746167447548,-672.0,0.00019999,2]
[359589372,1746167447558,-922.61,0.00019999,2]
[359589373,1746167447568,-450.0,0.00019999,2]
[359589374,1746167447578,-1018.51,0.00019999,2]
[359589375,1746167447588,-480.0013835,0.00019999,2]
[359589376,1746167447598,-10098.6,0.00019999,2]
[359589377,1746167447608,-544.2093823,0.00019999,2]
[359589378,1746167447619,-450.0,0.00019999,2]
[359589379,1746167447628,-450.0,0.00019999,2]
[359589380,1746167447638,-470.50571725,0.00019999,2]
[359589381,1746167447648,-477.70853353,0.00019999,2]
[359589382,1746167447658,-1175.55,0.00019999,2]
[359589383,1746167447667,-450.0,0.00019999,2]
[359589384,1746167447678,-450.0,0.00019999,2]
[359589385,1746167447688,-9538.66,0.00019999,2]
[359589386,1746167447698,-1442.67,0.00019999,2]
[359589387,1746167447707,-450.0,0.00019999,2]
[359589388,1746167447718,-472.79538287,0.00019999,2]
[359589389,1746167447728,-450.0,0.00019999,2]
[359589390,1746167447738,-1037.5,0.00019999,2]
[359589391,1746167447748,-450.0,0.00019999,2]
[359589392,1746167447758,-471.78928373,0.00019999,2]
[359589393,1746167447768,-628.0,0.00019999,2]
[359589394,1746167447778,-186.48852192,0.0002,2]
[359589395,1746167447788,-724329.41646623,0.0002,2]
[359589396,1746167447798,-1082045.60822554,0.0002,2]
[359589397,1746167448727,-510.51701814,0.00019999,2]
[359589398,1746167448737,-496.53,0.00019999,2]
[359589399,1746167448748,-1174.95298186,0.0002,2]
[359589400,1746167449582,-271.92848716,0.00019985,2]
[359589401,1746167449594,-178.07151284,0.00019985,2]
[359589402,1746167449604,-1463.7386019,0.0002,2]
[359589403,1746167449617,-2039.30178093,0.0002,2]
[359589404,1746167449659,-3797.68104727,0.0002,2]
[359589405,1746167449673,-283.66051578,0.0002,2]
[359589406,1746167449685,-3822.52695706,0.0002,2]
[359589407,1746167449704,-537.88414791,0.0002,2]
[359589408,1746167449717,-5111.85185997,0.0002,2]
[359589409,1746167449729,-1795.66259684,0.0002,2]
[359589410,1746167450249,-1276.83,0.00019999,2]
[359589411,1746167450260,-15002.75931408,0.0002,2]
[359589412,1746167450271,-38548.6271838,0.0002,2]
[359589413,1746167450283,-710.81898075,0.0002,2]
[359589414,1746167450295,-924.87105184,0.0002,2]
[359589415,1746167450315,-2647.73328687,0.0002,2]
[359589416,1746167450326,-206710.4657902,0.0002,2]
[359589417,1746167450337,-1729.24609705,0.0002,2]
[359589418,1746167450348,-302.0,0.0002,2]
[359589421,1746167547867,881.65,0.00032876,120]
[359589422,1746167548105,881.65,0.00032876,120]
[359589423,1746167548360,881.65,0.00032876,120]
[359589424,1746167548605,881.65,0.00032876,120]
[359589425,1746167548886,881.65,0.00032876,120]
[359589426,1746167549145,881.65,0.00032876,120]
[359589427,1746167549381,881.65,0.00032876,120]
[359589428,1746167549620,881.65,0.00032876,120]
[359589429,1746167549922,881.65,0.00032876,120]
[359589430,1746167550169,881.65,0.00032876,120]
[359589431,1746167550494,881.65,0.00032876,120]
[359589432,1746167550694,881.65,0.00032876,120]
[359589433,1746167550928,881.65,0.00032876,120]
[359589434,1746167551197,881.65,0.00032876,120]
[359589435,1746167551478,881.65,0.00032876,120]
[359589436,1746167552088,881.65,0.00032876,120]
[359589437,1746167552334,881.65,0.00032876,120]
[359589438,1746167552616,881.65,0.00032876,120]
[359589439,1746167552891,881.65,0.00032876,120]
[359589440,1746167553153,881.65,0.00032876,120]
[359589441,1746167553427,881.65,0.00032876,120]
[359589442,1746167554370,881.65,0.00032876,120]
[359589443,1746167554447,881.65,0.00032876,120]
[359589444,1746167554516,881.88975069,0.00032876,120]
[359589445,1746167554731,1000.0,0.00032876,60]
[359589446,1746167574552,158.28,0.00019084,2]
[359589447,1746167578658,1000.0,0.00032876,60]
[359589448,1746167808200,19265.33342404,0.000198,5]
[359589449,1746167808225,100000.0,0.000198,5]
[359589450,1746167808251,91786.07194245,0.000198,5]
[359589451,1746167810753,201.34,0.00019313,2]
[359589453,1746168039005,700.09,0.00017047,2]
[359589454,1746168039210,700.09,0.00019311,2]
[359589455,1746168103364,151.54,0.0001895,2]
[359589456,1746168103564,151.54,0.00018997,2]
[359589457,1746168103772,151.54,0.00019044,2]
[359589458,1746168173309,500.0,0.0003287,60]
[359589459,1746168173338,151.13832585,0.00018949,2]
[359589460,1746168231773,-166.57,0.00019603,2]
[359589461,1746168231800,-1000.0,0.000197,2]
[359589462,1746168231828,-155.5769965,0.00019799,2]
[359589463,1746168231854,-1000.0,0.00019884,2]
[359589464,1746168231881,-2512.9665,0.00019885,2]
[359589465,1746168231908,-1200.0,0.00019886,2]
[359589466,1746168231935,-300.0,0.00019886,2]
[359589467,1746168231960,-3728.8157447,0.00019892,2]
[359589468,1746168231986,-3728.8157447,0.00019893,2]
[359589469,1746168232013,-3728.8157447,0.00019895,2]
[359589470,1746168232040,-3728.8157447,0.00019897,2]
[359589471,1746168232067,-3728.8157447,0.00019898,2]
[359589472,1746168232094,-403.9579185,0.00019899,2]
[359589473,1746168232123,-500.0,0.00019899,2]
[359589474,1746168232149,-500.0,0.00019899,2]
[359589475,1746168232182,-500.0,0.00019899,2]
[359589476,1746168232214,-500.0,0.00019899,2]
[359589477,1746168232247,-184.02362913,0.00019899,2]
[359589478,1746168232274,-403.95791848,0.00019899,2]
[359589479,1746168232299,-403.95791848,0.000199,2]
[359589480,1746168232328,-403.95791848,0.000199,2]
[359589481,1746168232355,-1000.0,0.000199,2]
[359589482,1746168232381,-3728.8157447,0.000199,2]
[359589483,1746168232410,-12500.0,0.000199,2]
[359589484,1746168232444,-403.95791848,0.000199,2]
[359589485,1746168232471,-674.17226916,0.000199,2]
[359589486,1746168232499,-933.788,0.0001995,2]
[359589487,1746168232527,-207.4,0.00019953,2]
[359589488,1746168232553,-500.0,0.00019973,2]
[359589489,1746168232579,-641.6,0.00019983,2]
[359589490,1746168232607,-450.0,0.00019983,2]
[359589491,1746168232633,-450.0,0.00019983,2]
[359589492,1746168232661,-450.0,0.00019983,2]
[359589493,1746168232687,-580.71,0.00019983,2]
[359589494,1746168232716,-681.91,0.00019983,2]
[359589495,1746168232744,-450.0,0.00019983,2]
[359589496,1746168232770,-450.0,0.00019983,2]
[359589497,1746168232796,-1113.9,0.00019983,2]
[359589498,1746168232823,-890.93,0.00019983,2]
[359589499,1746168232850,-744.11,0.00019983,2]
[359589500,1746168232876,-450.0,0.00019983,2]
[359589501,1746168232902,-450.0,0.00019983,2]
[359589502,1746168232928,-450.0,0.00019983,2]
[359589503,1746168232954,-450.0,0.00019983,2]
[359589504,1746168232982,-903.34,0.00019983,2]
[359589505,1746168233316,-450.0,0.00019983,2]
[359589506,1746168233340,-450.0,0.00019983,2]
[359589507,1746168233366,-450.0,0.00019983,2]
[359589508,1746168233393,-1261.35,0.00019983,2]
[359589509,1746168233418,-463.77,0.00019983,2]
[359589510,1746168233443,-881.65,0.00019983,2]
[359589511,1746168233467,-450.0,0.00019983,2]
[359589512,1746168233492,-473.64104789,0.00019983,2]
[359589513,1746168233516,-943.73,0.00019983,2]
[359589514,1746168233539,-450.0,0.00019983,2]
[359589515,1746168233562,-450.0,0.00019983,2]
[359589516,1746168233588,-510.98194612,0.00019983,2]
[359589517,1746168233613,-704.42,0.00019983,2]
[359589518,1746168233640,-450.0,0.00019983,2]
[359589519,1746168233666,-473.30787121,0.00019983,2]
[359589520,1746168233692,-472.37385001,0.00019983,2]
[359589521,1746168233716,-500.0,0.00019983,2]
[359589522,1746168233745,-518.2237527,0.00019983,2]
[359589523,1746168233772,-1335.9,0.00019983,2]
[359589524,1746168233798,-450.0,0.00019983,2]
[359589525,1746168233824,-471.4856543,0.00019983,2]
[359589526,1746168233850,-450.0,0.00019983,2]
[359589527,1746168233876,-1627.41,0.00019983,2]
[359589528,1746168233902,-470.0,0.00019983,2]
[359589529,1746168233927,-450.0,0.00019983,2]
[359589530,1746168233953,-473.75793715,0.00019983,2]
[359589531,1746168233979,-537.91033159,0.00019983,2]
[359589532,1746168234005,-832.41,0.00019983,2]
[359589533,1746168234032,-1816.44,0.00019983,2]
[359589534,1746168234060,-450.0,0.00019983,2]
[359589535,1746168234084,-472.06857966,0.00019983,2]
[359589536,1746168234109,-470.0,0.00019983,2]
[359589537,1746168234134,-450.0,0.00019983,2]
[359589538,1746168234165,-471.40845704,0.00019983,2]
[359589539,1746168234192,-505.13,0.00019983,2]
[359589540,1746168234218,-704.94,0.00019983,2]
[359589541,1746168234244,-450.0,0.00019983,2]
[359589542,1746168234269,-670.67,0.00019983,2]
[359589543,1746168234295,-532.93,0.00019983,2]
[359589544,1746168234323,-786.38,0.00019983,2]
[359589545,1746168234350,-479.89,0.00019983,2]
[359589546,1746168234377,-2554.13911692,0.00019983,2]
[359589547,1746168235621,508.850735,0.0003287,60]
[359589549,1746168364999,155.5,0.000194,2]
[359589550,1746168371830,1000.0,0.00018963,2]
[359589552,1746168602375,2000.0,0.0002,4]
[359589554,1746168628742,250.0,0.00017,2]
[359589555,1746168630108,300.0,0.00019,2]
[359589557,1746168632312,-155.5769965,0.00019799,2]
[359589558,1746168632323,-250.0,0.00019815,2]
[359589559,1746168632334,-200.0,0.00019815,2]
[359589560,1746168632343,-200.0,0.00019831,2]
[359589561,1746168632353,-200.0,0.00019846,2]
[359589562,1746168632363,-150.0,0.00019863,2]
[359589563,1746168632373,-1200.0,0.00019883,2]
[359589564,1746168632383,-300.0,0.00019883,2]
[359589565,1746168632393,-2246.33031378,0.00019884,2]
[359589566,1746168632403,-500.0,0.00019884,2]
[359589567,1746168632413,-10963.41491329,0.00019884,2]
[359589568,1746168632424,-1661.53110685,0.00019884,2]
[359589585,1746168632856,-268.545,0.00019884,2]
[359589587,1746168632868,-712.80182721,0.00019884,2]
[359589590,1746168632879,-663.86994497,0.00019884,2]
[359589592,1746168632890,-2081.76129062,0.00019884,2]
[359589722,1746168638365,-4104.72063404,0.00019884,2]
[359589723,1746168638376,-2565.25300719,0.00019884,2]
[359589728,1746168639325,-3616.016283,0.00019884,2]
[359589729,1746168639336,-4531.12949283,0.00019884,2]
[359589730,1746168639345,-5051.7594,0.00019884,2]
[359589731,1746168639354,-2246.33031371,0.00019886,2]
[359589732,1746168639363,-2246.33031371,0.00019888,2]
[359589733,1746168639372,-2246.33031371,0.00019889,2]
[359589734,1746168639381,-2246.33031371,0.00019891,2]
[359589735,1746168639390,-2246.33031371,0.00019893,2]
[359589736,1746168639399,-2246.33031371,0.00019895,2]
[359589737,1746168639409,-1491.52629788,0.00019896,2]
[359589738,1746168639418,-2246.33031371,0.00019896,2]
[359589739,1746168639427,-1491.52629788,0.00019898,2]
[359589740,1746168639437,-2246.33031371,0.00019898,2]
[359589741,1746168639447,-170.44898865,0.00019899,2]
[359589742,1746168639461,-1000.0,0.000199,2]
[359589743,1746168639471,-1491.52629788,0.000199,2]
[359589744,1746168639481,-2246.33031371,0.000199,2]
[359589745,1746168639491,-449.44817944,0.000199,2]
[359589746,1746168639502,-207.4,0.00019953,2]
[359589747,1746168639512,-500.0,0.00019973,2]
[359589748,1746168639522,-500.0,0.00019973,2]
[359589749,1746168639532,-500.0,0.00019973,2]
[359589750,1746168639542,-450.0,0.00019982,2]
[359589751,1746168639551,-450.0,0.00019982,2]
[359589752,1746168639561,-450.0,0.00019983,2]
[359589753,1746168639570,-827.19,0.00019983,2]
[359589754,1746168639580,-774.6,0.00019983,2]
[359589755,1746168639590,-853.12,0.00019983,2]
[359589756,1746168639599,-480.32,0.00019983,2]
[359589757,1746168639608,-953.53,0.00019983,2]
[359589758,1746168639617,-1477.691424,0.00019983,2]
[359589759,1746168639627,-450.0,0.00019983,2]
[359589760,1746168639636,-739.86,0.00019983,2]
[359589761,1746168639646,-899.85,0.00019983,2]
[359589762,1746168639655,-677.04,0.00019983,2]
[359589763,1746168639665,-848.87,0.00019983,2]
[359589764,1746168639674,-631.15,0.00019983,2]
[359589765,1746168639684,-1055.620676,0.00019983,2]
[359589766,1746168639694,-604.51,0.00019983,2]
[359589767,1746168639703,-450.0,0.00019983,2]
[359589768,1746168639713,-450.0,0.00019983,2]
[359589769,1746168639723,-971.99,0.00019983,2]
[359589770,1746168639732,-521.55728321,0.00019983,2]
[359589771,1746168639742,-450.0,0.00019983,2]
[359589772,1746168639751,-500.0,0.00019983,2]
[359589773,1746168639761,-450.0,0.00019983,2]
[359589774,1746168639771,-450.0,0.00019983,2]
[359589775,1746168639780,-2869.19,0.00019983,2]
[359589776,1746168639790,-450.0,0.00019983,2]
[359589777,1746168639799,-450.0,0.00019983,2]
[359589778,1746168639808,-450.0,0.00019983,2]
[359589779,1746168639818,-450.0,0.00019983,2]
[359589780,1746168639828,-2168.8,0.00019983,2]
[359589781,1746168639838,-450.0,0.00019983,2]
[359589782,1746168639848,-157.359607,0.00019983,2]
[359589783,1746168639858,-450.0,0.00019983,2]
[359589784,1746168639868,-450.0,0.00019983,2]
[359589785,1746168639878,-1414.06,0.00019983,2]
[359589786,1746168639887,-450.0,0.00019983,2]
[359589787,1746168639896,-450.0,0.00019983,2]
[359589788,1746168639905,-1405.33,0.00019983,2]
[359589789,1746168639914,-450.0,0.00019983,2]
[359589790,1746168639923,-215.41080856,0.00019983,2]
[359589791,1746168639962,-234.58919144,0.00019983,2]
[359589792,1746168639972,-450.0,0.00019983,2]
[359589793,1746168639982,-479.40318502,0.00019983,2]
[359589794,1746168639991,-1192.87,0.00019983,2]
[359589795,1746168640002,-526.05,0.00019983,2]
[359589796,1746168640011,-529.42,0.00019983,2]
[359589797,1746168640021,-437.96007436,0.00019983,2]
[359589798,1746168640031,-450.0,0.00019983,2]
[359589799,1746168640041,-450.0,0.00019983,2]
[359589800,1746168640050,-450.0,0.00019983,2]
[359589801,1746168640060,-450.0,0.00019983,2]
[359589802,1746168640069,-450.0,0.00019983,2]
[359589803,1746168640079,-450.0,0.00019983,2]
[359589804,1746168640090,-450.0,0.00019983,2]
[359589805,1746168640100,-450.0,0.00019983,2]
[359589806,1746168640109,-236.06016461,0.00019983,2]
[359589807,1746168640118,-500.0,0.00019983,2]
[359589808,1746168640128,-450.0,0.00019983,2]
[359589809,1746168640138,-450.0,0.00019983,2]
[359589810,1746168640147,-450.0,0.00019983,2]
[359589811,1746168640157,-518.44,0.00019983,2]
[359589812,1746168640166,-450.0,0.00019983,2]
[359589813,1746168640176,-1082.5,0.00019983,2]
[359589814,1746168640186,-450.0,0.00019983,2]
[359589815,1746168640196,-479.68894796,0.00019983,2]
[359589816,1746168640206,-450.0,0.00019983,2]
[359589817,1746168640217,-450.0,0.00019983,2]
[359589818,1746168640227,-220.87125325,0.00019983,2]
[359589819,1746168640237,-420.30361472,0.00019983,2]
[359589820,1746168640247,-450.0,0.00019983,2]
[359589821,1746168640256,-450.0,0.00019983,2]
[359589822,1746168640266,-905.37,0.00019983,2]
[359589823,1746168640276,-1285.97,0.00019983,2]
[359589824,1746168640285,-861.54,0.00019983,2]
[359589825,1746168640295,-450.0,0.00019983,2]
[359589826,1746168640304,-482.89,0.00019983,2]
[359589827,1746168640313,-424.0259524,0.00019983,2]
[359589828,1746168640323,-600.24,0.00019983,2]
[359589829,1746168640333,-450.0,0.00019983,2]
[359589830,1746168640342,-804.96,0.00019983,2]
[359589831,1746168640351,-450.0,0.00019983,2]
[359589832,1746168640360,-450.0,0.00019983,2]
[359589833,1746168640370,-1210.58,0.00019983,2]
[359589834,1746168640379,-484.5,0.00019983,2]
[359589835,1746168640389,-450.0,0.00019983,2]
[359589836,1746168640398,-450.0,0.00019983,2]
[359589837,1746168640409,-481.00010173,0.00019983,2]
[359589838,1746168640419,-450.0,0.00019983,2]
[359589839,1746168640429,-667.15,0.00019983,2]
[359589840,1746168640438,-450.0,0.00019983,2]
[359589841,1746168640450,-508.45,0.00019983,2]
[359589842,1746168640462,-450.0,0.00019983,2]
[359589843,1746168640471,-516.56,0.00019983,2]
[359589844,1746168640482,-642.64,0.00019983,2]
[359589845,1746168640493,-489.14,0.00019983,2]
[359589846,1746168640502,-507.2,0.00019983,2]
[359589847,1746168640514,-450.0,0.00019983,2]
[359589848,1746168640524,-450.0,0.00019983,2]
[359589849,1746168640534,-254.76,0.00019983,2]
[359589850,1746168640544,-498.56,0.00019983,2]
[359589851,1746168640552,-450.0,0.00019983,2]
[359589852,1746168640560,-774.51,0.00019983,2]
[359589853,1746168640568,-276.44485914,0.00019983,2]
[359589854,1746168640576,-1014.69,0.00019983,2]
[359589855,1746168640585,-2881.83,0.00019983,2]
[359589856,1746168640594,-450.0,0.00019983,2]
[359589857,1746168640602,-450.0,0.00019983,2]
[359589858,1746168640610,-476.81,0.00019983,2]
[359589859,1746168640620,-835.13,0.00019983,2]
[359589860,1746168640629,-708.66,0.00019983,2]
[359589861,1746168640638,-450.0,0.00019983,2]
[359589862,1746168640647,-450.0,0.00019983,2]
[359589863,1746168640656,-486.25,0.00019983,2]
[359589864,1746168640666,-450.0,0.00019983,2]
[359589865,1746168640675,-450.0,0.00019983,2]
[359589866,1746168640685,-450.0,0.00019983,2]
[359589867,1746168640694,-899.46,0.00019983,2]
[359589868,1746168640703,-450.0,0.00019983,2]
[359589869,1746168640713,-751.06,0.00019983,2]
[359589870,1746168640722,-450.0,0.00019983,2]
[359589871,1746168640731,-450.0,0.00019983,2]
[359589872,1746168640741,-288.06419333,0.00019983,2]
[359589873,1746168640751,-1100.78,0.00019983,2]
[359589874,1746168640763,-450.0,0.00019983,2]
[359589875,1746168640774,-3126.58,0.00019983,2]
[359589876,1746168640783,-450.0,0.00019983,2]
[359589877,1746168640793,-1143.45,0.00019983,2]
[359589878,1746168640803,-450.0,0.00019983,2]
[359589879,1746168640813,-450.0,0.00019983,2]
[359589880,1746168640823,-450.0,0.00019983,2]
[359589881,1746168640834,-450.0,0.00019983,2]
[359589882,1746168640844,-5333.28,0.00019983,2]
[359589883,1746168640852,-879.96,0.00019983,2]
[359589884,1746168640861,-369.86021687,0.00019983,2]
[359589885,1746168640871,-498.55,0.00019983,2]
[359589886,1746168640879,-450.0,0.00019983,2]
[359589887,1746168640888,-450.0,0.00019983,2]
[359589888,1746168640897,-672.75,0.00019983,2]
[359589889,1746168640906,-450.0,0.00019983,2]
[359589890,1746168640915,-271.1320085,0.00019983,2]
[359589891,1746168640924,-1056.11,0.00019983,2]
[359589892,1746168640935,-487.82,0.00019983,2]
[359589893,1746168640945,-450.0,0.00019983,2]
[359589894,1746168640955,-988.37,0.00019983,2]
[359589895,1746168640964,-450.0,0.00019983,2]
[359589896,1746168640974,-464.97,0.00019983,2]
[359589897,1746168640984,-726.83,0.00019983,2]
[359589898,1746168640994,-848.62,0.00019983,2]
[359589899,1746168641004,-450.0,0.00019983,2]
[359589900,1746168641014,-581.77,0.00019983,2]
[359589901,1746168641023,-869.15,0.00019983,2]
[359589902,1746168641033,-450.0,0.00019983,2]
[359589903,1746168641043,-503.48,0.00019983,2]
[359589904,1746168641052,-2344.76,0.00019983,2]
[359589905,1746168641062,-450.0,0.00019983,2]
[359589906,1746168641072,-810.85,0.00019983,2]
[359589907,1746168641081,-513.36,0.00019983,2]
[359589908,1746168641092,-1642.59,0.00019983,2]
[359589909,1746168641101,-1085.57,0.00019983,2]
[359589910,1746168641111,-450.0,0.00019983,2]
[359589911,1746168641121,-745.45,0.00019983,2]
[359589912,1746168641131,-450.0,0.00019983,2]
[359589913,1746168641141,-588.70547733,0.00019983,2]
[359589914,1746168641151,-850.43,0.00019983,2]
[359589915,1746168641160,-450.0,0.00019983,2]